[Event "37th ECCC 2022"]
[Site "Mayrhofen"]
[Date "2022.10.04"]
[Round "2.49"]
[White "Shevchenko, Kirill"]
[Black "Hauge, Lars Oskar"]
[Result "1-0"]
[ECO "A29"]
[WhiteElo "2645"]
[BlackElo "2531"]
[Annotator "TA"]
[PlyCount "95"]
[EventDate "2022.10.03"]
[EventType "team-tourn"]
[EventCountry "AUT"]
[SourceTitle "playchess.com"]
[Source "ChessBase"]
[SourceQuality "1"]
[TimeControl "40/5400+30:1800+30"]

{[%evp 19,95,0,16,0,20,32,27,30,37,39,29,13,30,38,34,-10,-7,-17,-13,-12,-11,-18,-10,-103,-111,-107,-107,-100,-104,-116,-104,-129,-75,-142,-43,-49,-8,-10,-11,-254,-244,-346,0,-25,52,40,41,52,62,58,73,14,112,110,96,18,118,93,133,61,312,311,299,280,450,368,423,416,423,422,416,416,416,414,414,400,378,373]} 1. c4 {[%emt 0:00:02]} e5 {[%emt 0:01:47]} 2. Nc3 {[%emt 0:00:21]} Nf6 {[%emt 0:02:57]} 3. Nf3 {[%emt 0:00:34]} Nc6 {[%emt 0:01:59]} 4. g3 {[%emt 0:00:13]} d5 {[%emt 0:04:21]} 5. cxd5 {[%emt 0:00:05]} Nxd5 {[%emt 0:00:04]} 6. Bg2 {[%emt 0:00:04]} Nb6 {[%emt 0:00:31]} 7. O-O {[%emt 0:00:50]} Be7 {[%emt 0:01:31]} 8. b3 {[%emt 0:01:43]} O-O {[%emt 0:00:51]} 9. Bb2 {[%emt 0:00:23]} Re8 {[%emt 0:01:04]} 10. Rc1 {[%emt 0:04:41]} Bf8 {[%emt 0:02:39]} 11. d3 {[%emt 0:07:03][%cal Bd2d3,Bd3d4][%mdl 32] [#] 11.Ne4 injects fresh life into this line. A29: English Opening: Four Knights Variation with 4 g3.} Rb8 $146 {[%emt 0:07:50]} ({Predecessor:} 11... Bg4 12. h3 Bh5 13. Ne4 f6 14. Nc5 Bxc5 15. Rxc5 Qd7 16. b4 a6 17. a3 Rad8 18. Qc2 Re7 19. Rc1 Qe8 20. Nh4 Re6 {½-½ (37) Donchenko,A (2644)-Aronian,L (2775) Moscow 2019}) 12. Ne4 {[%emt 0:07:25]} f6 {[%emt 0:12:13][%cal Bf7f6,Bf6f5,Bf5f4][%mdl 32]} 13. Qc2 {[%emt 0:17:08] White has an edge.} Bg4 {[%emt 0:07:27]} 14. Rfd1 {[%emt 0:05:18]} Qe7 {[%emt 0:03:20]} 15. d4 {[%emt 0:12:31]} Bxf3 {[%emt 0:05:41]} 16. Bxf3 {[%emt 0:01:07]} f5 {[%emt 0:01:13]} 17. Nc5 {[%emt 0:10:11]} (17. dxe5 $5 {[%cal Re4f6]} fxe4 18. Bxe4 $11) 17... e4 {[%emt 0:00:37]} 18. Bg2 {[%emt 0:00:46]} Nb4 {[%emt 0:01:48][%csl LRa2,LRc2]} 19. Qd2 {[%emt 0:02:03]} N4d5 {[%emt 0:00:11]} 20. e3 {[%emt 0:03:10]} Qf7 {[%emt 0:03:33]} 21. g4 {[%emt 0:08:14]} (21. Re1 $11) 21... f4 $17 {[%emt 0:04:26]} 22. Nxe4 {[%emt 0:06:19]} Qg6 $1 {[%emt 0:00:47][%csl LRe4,LRg4] ...fxe3 is the strong threat.} 23. Nc5 {[%emt 0:04:18] Black must now prevent e4.} fxe3 {[%emt 0:06:53]} 24. fxe3 {[%emt 0:00:08]} Nxe3 {[%emt 0:00:30]} 25. Re1 {[%emt 0:00:10]} Nxg4 {[%emt 0:00:08]} ({Better is} 25... Nbd5 26. Bxd5+ Nxd5) 26. Nxb7 {[%emt 0:02:08]} (26. Qd3 $142) 26... c6 {[%emt 0:11:49]} (26... Qh5 27. h3 Rxe1+ 28. Rxe1 $14) (26... Be7 $1 $17 {[%cal Re7g5]} 27. Be4 (27. Rxc7 $2 Bg5 $19) 27... Qh5) 27. Nc5 $15 {[%emt 0:02:38]} (27. Bxc6 $2 Rxe1+ 28. Qxe1 Ne5+ 29. Qg3 Qxg3+ 30. hxg3 Nxc6 31. Rxc6 Rxb7 $19) (27. Rxe8 $2 Rxe8 28. Bxc6 Re6 $19) 27... Bd6 {[%emt 0:00:37]} 28. h3 {[%emt 0:00:32]} Nf6 {[%emt 0:02:22]} 29. Nd3 $2 {[%emt 0:01:36]} (29. Rxe8+ $11 {and White is okay.} Rxe8 30. Re1) 29... Ne4 $19 {[%emt 0:01:49]} 30. Qc2 {[%emt 0:02:09]} (30. Rxe4 $142 Rxe4 31. Ne5) 30... Ng5 $2 {[%emt 0:03:09]} ({Black should play} 30... Qg3 $19 {( -> ...Qh2+)} 31. Rxe4 Rxe4) 31. Ne5 {[%emt 0:00:32]} (31. Qxc6 $2 Rxe1+ 32. Rxe1 Rc8 $19) 31... Qh5 {[%emt 0:02:13]} ({Black should try} 31... Nxh3+ $1 $11 32. Kh2 (32. Kh1 Qh6 $17) 32... Qxc2 33. Rxc2 Nf4) 32. Qf5 $36 {[%emt 0:01:27][%mdl 2048] White is pushing.} (32. Nxc6 Qh4 33. Ne5 Qg3 $11) (32. Bxc6 $2 Nxh3+ 33. Kh1 Rf8 $19) 32... Nd5 {[%emt 0:07:51]} 33. Qg4 {[%emt 0:00:26]} (33. Rxc6 Ne7 34. Qg4 Nxh3+ $1 {[%mdl 512]} 35. Bxh3 Qxg4+ 36. Bxg4 Nxc6 $17) (33. Nxc6 $2 Nf4 34. Ne7+ Kh8 $19) 33... Qxg4 {[%emt 0:00:37]} 34. hxg4 {[%emt 0:00:21]} Nf4 {[%emt 0:00:07]} 35. Bxc6 {[%emt 0:00:52] This bishop pair is nice.} (35. Rxc6 $16 Rb6 36. Rxb6 axb6 37. Re3) 35... Rf8 {[%emt 0:00:19]} (35... Bxe5 $11 36. Bxe8 (36. dxe5 Nd3 $11) (36. Rxe5 Rxe5 37. dxe5 Ne2+ 38. Kf1 Nxc1 $11) 36... Nf3+ 37. Kf1 Rxe8 38. dxe5 (38. Rxe5 Nxe5 39. dxe5 Nd3 $11) 38... Nxe1 39. Rxe1 Nd3) 36. Rc2 $1 $16 {[%emt 0:00:22]} Rbd8 {[%emt 0:02:03] [#]} 37. Bc1 {[%emt 0:00:21]} (37. Rf1 $1 $16) 37... Bc7 {[%emt 0:01:02]} (37... Ngh3+ $11 {remains equal.} 38. Kh1 Bxe5 39. Rxe5 (39. dxe5 Nd3 $17) 39... Nd3) 38. Be3 {[%emt 0:00:42]} Rf6 {[%emt 0:00:25] [#]} 39. Rf1 {[%emt 0:00:23]} (39. Bd5+ $1 $16 {[%mdl 512]} Rxd5 40. Rxc7) 39... Nfh3+ $2 {[%emt 0:00:41][%mdl 8192]} (39... Nge6 $1 $14) 40. Kg2 $18 {[%emt 0:00:01]} Rxf1 41. Kxf1 {[%emt 0:30:01]} Bb6 $2 {[%emt 0:02:48]} (41... h6 42. Bb5 Rf8+ 43. Kg2 Bxe5) 42. Kg2 {[%emt 0:00:00]} Bxd4 {[%emt 0:03:53]} 43. Bxd4 {[%emt 0:00:00]} Rxd4 {[%emt 0:01:06] [#]} 44. Bd5+ $1 {[%emt 0:00:00][%mdl 512]} Kf8 {[%emt 0:00:04] aiming for ...Nf4+.} 45. Rc8+ {[%emt 0:00:00] White is winning.} Ke7 {[%emt 0:00:05] Hoping for ...Nf4+.} 46. Nc6+ {[%emt 0:00:00]} Kd7 {[%emt 0:00:06]} 47. Nxd4 {[%emt 0:00:00]} Kxc8 {[%emt 0:00:23]} 48. Ne2 {[%emt 0:00:00] Against Nf4+. Quite a comeback for White.  Weighted Error Value: White=0.33/Black=0.55} 1-0

[Event "37th ECCC 2022"]
[Site "Mayrhofen"]
[Date "2022.10.04"]
[Round "2.50"]
[White "Ertan, Can"]
[Black "Iskandarov, Misratdin"]
[Result "1/2-1/2"]
[ECO "B92"]
[WhiteElo "2372"]
[BlackElo "2601"]
[Annotator "TA"]
[PlyCount "91"]
[EventDate "2022.10.03"]
[EventType "team-tourn"]
[EventCountry "AUT"]
[SourceTitle "playchess.com"]
[Source "ChessBase"]
[SourceQuality "1"]
[TimeControl "40/5400+30:1800+30"]

{[%evp 19,91,8,7,0,0,0,-4,-18,6,-167,0,0,0,0,0,-35,-42,-76,-28,-20,0,-135,-57,-52,-48,-54,-79,-65,-56,-99,-125,-118,-109,-96,-25,-25,-25,-55,-25,-157,-138,-143,-136,-149,-150,-124,-17,-18,0,0,0,0,0,0,0,0,0,0,0,0,0,0,0,0,0,0,0,0,0,0,0,0,0,0]} 1. e4 {[%emt 0:04:45]} c5 {[%emt 0:00:09]} 2. Nf3 {[%emt 0:00:03]} d6 {[%emt 0:00:09]} 3. d4 {[%emt 0:00:03]} cxd4 {[%emt 0:00:07]} 4. Nxd4 {[%emt 0:00:03]} Nf6 {[%emt 0:00:09]} 5. Nc3 {[%emt 0:00:02]} a6 {[%emt 0:00:08]} 6. Be2 {[%emt 0:01:33]} e5 {[%emt 0:00:38]} 7. Nb3 {[%emt 0:00:02]} Be7 {[%emt 0:00:07]} 8. O-O {[%emt 0:05:13]} Be6 {[%emt 0:00:26]} 9. f4 {[%emt 0:01:17]} Qc7 {[%emt 0:01:11]} 10. a4 {[%emt 0:17:30]} Nbd7 {[%emt 0:02:35]} 11. a5 {[%emt 0:13:25] B92: Sicilian Najdorf: 6 Be2.} Rc8 {[%emt 0:16:04]} 12. Kh1 {[%emt 0:05:52]} O-O {[%emt 0:04:02]} 13. g4 {[%emt 0:00:38]} exf4 {[%emt 0:07:23] [#] ...Bxb3 is the strong threat.} 14. Nd4 $146 {[%emt 0:01:47]} (14. g5 $11 {and White is okay.} f3 15. Bxf3) ({Predecessor:} 14. g5 Ne8 15. Bxf4 Ne5 16. Nd4 g6 17. Bxe5 dxe5 18. Nxe6 fxe6 19. Rxf8+ Bxf8 20. Bg4 {1-0 (29) Volokitin,A (2447)-Schulte,J (2157) Bad Wiessee 2000}) 14... Ne5 $2 {[%emt 0:02:40]} ({Black should play} 14... g5 $19 15. Nf5 Bxf5 16. gxf5 d5 17. exd5 Bc5) 15. g5 $11 {[%emt 0:07:45]} Nfd7 {[%emt 0:09:44]} 16. Bxf4 {[%emt 0:00:14]} Rfe8 {[%emt 0:02:50]} 17. Nxe6 {[%emt 0:17:31]} fxe6 {[%emt 0:00:06]} 18. Qb1 {[%emt 0:07:28]} Qc6 {[%emt 0:03:28]} (18... Ng6 $17 19. Be3 Nde5) 19. Qa2 {[%emt 0:00:19]} Nc5 {[%emt 0:01:35][%cal Oe7g5]} 20. Bc4 {[%emt 0:01:20] [#]} (20. Bxe5 $11 {remains equal.} dxe5 21. b4 Nxe4 22. Bf3 Ng3+ 23. hxg3 Qxc3 24. Bxb7 (24. Qxe6+ Kh8 $11)) 20... Nxc4 {[%emt 0:05:55]} (20... Bd8 $1 $17 21. b4 Nxc4 22. Qxc4 Nd7 23. Qxc6 Rxc6) 21. Qxc4 $15 {[%emt 0:00:04]} Bf8 {[%emt 0:00:06]} 22. Rad1 {[%emt 0:05:15][%cal Og5g6]} b5 {[%emt 0:04:17]} 23. axb6 {[%emt 0:01:37]} Qxb6 {[%emt 0:00:07]} 24. Na4 {[%emt 0:03:39]} Nxa4 {[%emt 0:09:24]} 25. Qxa4 {[%emt 0:00:03]} Qxb2 {[%emt 0:00:08]} 26. Bxd6 {[%emt 0:00:23]} Qxc2 {[%emt 0:00:31]} ({Black should try} 26... Bxd6 $17 27. Rxd6 Rf8 28. Qxa6 (28. Rxf8+ Rxf8 29. Rd1 Qe5 $17) 28... Qxc2) 27. Qxc2 $11 {[%emt 0:02:02]} Rxc2 {[%emt 0:00:05]} 28. e5 {[%emt 0:01:47]} Rd8 {[%emt 0:02:41] And now ...Rc6 would win.} 29. Rf3 {[%emt 0:02:47]} (29. Bxf8 $11 {keeps the balance.} Rxf8 30. Rxf8+ Kxf8 31. Ra1) 29... Rc6 $17 {[%emt 0:01:30]} 30. Rfd3 {[%emt 0:00:05]} Bxd6 {[%emt 0:00:09]} 31. exd6 {[%emt 0:00:03][%mdl 4096] Endgame KRR-KRR} Kf7 {[%emt 0:00:08]} 32. Kg2 {[%emt 0:00:23]} e5 {[%emt 0:01:33]} (32... Rd7 $17 33. R1d2 e5 34. Rf2+ Ke6) 33. d7 $11 {[%emt 0:01:18] The position is equal.} Ke7 {[%emt 0:00:30]} 34. Rd5 {[%emt 0:00:14]} Ke6 {[%emt 0:00:56]} 35. Kf3 {[%emt 0:00:24]} Kf5 {[%emt 0:06:40]} 36. h4 {[%emt 0:01:04]} Rc3+ {[%emt 0:00:25]} 37. Kg2 {[%emt 0:00:12]} Rc4 {[%emt 0:01:28]} 38. Kg3 {[%emt 0:00:42]} Rg4+ {[%emt 0:05:05]} 39. Kh3 {[%emt 0:00:04] [#] Black must now prevent Rc5.} Re4 {[%emt 0:02:49]} 40. Rc5 {[%emt 0:00:58]} Ke6 {[%emt 0:00:24]} 41. Rc6+ {[%emt 0:30:09]} Ke7 {[%emt 0:30:05]} 42. Rxa6 {[%emt 0:00:17]} Rd4 {[%emt 0:00:10]} ({Resist} 42... Rxd7 43. Rxd7+ Kxd7 44. Ra7+ Ke6 45. Rxg7 $14) 43. Re1 {[%emt 0:00:36]} Rd5 {[%emt 0:00:16]} 44. g6 {[%emt 0:00:16]} hxg6 {[%emt 0:06:49]} 45. Rxg6 {[%emt 0:00:00]} Kf7 {[%emt 0:00:00]} 46. Rg5 {[%emt 0:00:00] Weighted Error Value: White=0.27 (precise) /Black=0.19 (very precise)} 1/2-1/2

[Event "37th ECCC 2022"]
[Site "Mayrhofen"]
[Date "2022.10.04"]
[Round "2.51"]
[White "Asadli, Vugar"]
[Black "Thorn, Eric"]
[Result "0-1"]
[ECO "C77"]
[WhiteElo "2575"]
[BlackElo "2351"]
[Annotator "TA"]
[PlyCount "68"]
[EventDate "2022.10.03"]
[EventType "team-tourn"]
[EventCountry "AUT"]
[SourceTitle "playchess.com"]
[Source "ChessBase"]
[SourceQuality "1"]
[TimeControl "40/5400+30:1800+30"]

{[%evp 21,68,0,0,0,0,0,0,0,0,0,0,-33,-37,-60,-23,-63,-67,-60,-59,-75,-72,-75,-53,-60,-41,-69,-55,-71,-62,-62,-64,-75,-67,-70,-68,-77,-41,-231,-158,-1015,-991,-847,-538,-538,-538,-538,-538,-538,-533]} 1. e4 {[%emt 0:00:05]} e5 {[%emt 0:00:06]} 2. Nf3 {[%emt 0:00:05]} Nc6 {[%emt 0:00:07]} 3. Bb5 {[%emt 0:00:05]} a6 {[%emt 0:00:11]} 4. Ba4 {[%emt 0:00:04]} Nf6 {[%emt 0:00:18]} 5. d4 {[%emt 0:00:05]} exd4 {[%emt 0:00:19]} 6. O-O {[%emt 0:00:07]} Be7 {[%emt 0:01:04]} 7. e5 {[%emt 0:00:19]} Ne4 {[%emt 0:00:22]} 8. Nxd4 {[%emt 0:00:20]} Nc5 {[%emt 0:01:05]} 9. Nf5 {[%emt 0:01:24]} O-O {[%emt 0:00:12]} 10. Qg4 {[%emt 0:01:02]} g6 {[%emt 0:00:07]} 11. Bxc6 {[%emt 0:00:26]} dxc6 {[%emt 0:00:07]} 12. Nxe7+ {[%emt 0:00:05] C84: Closed Ruy Lopez: Unusual White 6th moves.} Qxe7 {[%emt 0:00:06]} 13. Qg3 {[%emt 0:00:04]} Re8 {[%emt 0:01:16]} 14. Re1 {[%emt 0:00:05] The position is equal.} Bf5 {[%emt 0:01:18]} 15. Nc3 {[%emt 0:02:04]} Ne6 {[%emt 0:02:25] Against Bg5} 16. Ne4 {[%emt 0:15:26]} Bxe4 {[%emt 0:01:11]} 17. Rxe4 {[%emt 0:00:05]} Rad8 {[%emt 0:05:29] [#] ( -> ...Rd1+)} 18. Re1 $146 {[%emt 0:10:38] Prevents Rd1.} ({Predecessor:} 18. Bh6 Qc5 19. c3 Qb5 20. b3 Qd3 21. Re3 Qc2 22. h4 Rd1+ 23. Rxd1 Qxd1+ 24. Kh2 {0-1 (39) Kosteniuk,A (2474)-Martinez Alcantara,J (2620) Chess.com INT 2021}) 18... Qb4 {[%emt 0:05:58][%cal Rb4e1]} 19. c3 {[%emt 0:04:57]} Qb5 {[%emt 0:06:19]} 20. h3 {[%emt 0:02:45]} Rd3 {[%emt 0:04:13]} 21. Qh4 {[%emt 0:04:13]} b6 {[%emt 0:08:09]} 22. Kh2 {[%emt 0:10:17]} c5 {[%emt 0:08:13]} 23. f4 {[%emt 0:12:59][%cal Of4f5]} Qc4 {[%emt 0:06:55]} 24. Qf2 {[%emt 0:09:37]} Ng7 {[%emt 0:02:53] Black has more active pieces.} 25. g4 {[%emt 0:00:17]} h5 {[%emt 0:07:31]} 26. Be3 {[%emt 0:00:24]} hxg4 {[%emt 0:08:15]} 27. hxg4 {[%emt 0:00:04]} g5 {[%emt 0:00:59]} 28. Rf1 {[%emt 0:01:30]} f5 {[%emt 0:07:43] [#] Strongly threatening ...Rf8.} 29. Rg1 $2 {[%emt 0:06:14]} ({White should try} 29. Rae1 $1 $15) 29... Kf7 {[%emt 0:05:36]} 30. Rae1 $2 {[%emt 0:00:42] Now White is beyond hope.} (30. Rg2 $17) 30... Rh8+ $19 {[%emt 0:05:08] Black is clearly winning.} 31. Kg2 {[%emt 0:00:01]} Qe4+ {[%emt 0:02:14]} 32. Kf1 {[%emt 0:00:05]} Rh3 {[%emt 0:00:08]} 33. Rg3 {[%emt 0:00:16]} Rxg3 {[%emt 0:00:16]} 34. Qxg3 {[%emt 0:00:02]} gxf4 {[%emt 0:00:16] Weighted Error Value: White=0.32/Black=0.37} 0-1

[Event "37th ECCC 2022"]
[Site "Mayrhofen"]
[Date "2022.10.04"]
[Round "2.52"]
[White "Cederstam, Carl"]
[Black "Ahmadzada, Ahmad"]
[Result "0-1"]
[ECO "C88"]
[WhiteElo "2337"]
[BlackElo "2488"]
[Annotator "TA"]
[PlyCount "58"]
[EventDate "2022.10.03"]
[EventType "team-tourn"]
[EventCountry "AUT"]
[SourceTitle "playchess.com"]
[Source "ChessBase"]
[SourceQuality "1"]
[TimeControl "40/5400+30:1800+30"]

{[%evp 25,58,-35,-14,-95,-88,-82,-91,-96,-110,-107,-90,-112,-113,-114,-88,-116,-112,-321,-321,-313,-314,-302,-304,-311,-300,-391,-386,-646,-532,-1119,-1067,-29974,-900,-4810,-4794]} 1. e4 {[%emt 0:00:32]} e5 {[%emt 0:00:08]} 2. Nf3 {[%emt 0:00:10]} Nc6 {[%emt 0:00:05]} 3. Bb5 {[%emt 0:00:10]} a6 {[%emt 0:00:08]} 4. Ba4 {[%emt 0:00:06]} Nf6 {[%emt 0:00:08]} 5. O-O {[%emt 0:00:19]} Be7 {[%emt 0:00:30]} 6. Re1 {[%emt 0:01:07]} b5 {[%emt 0:00:07]} 7. Bb3 {[%emt 0:00:02]} O-O {[%emt 0:00:13]} 8. a4 {[%emt 0:00:33]} b4 {[%emt 0:00:07]} 9. a5 {[%emt 0:00:52]} d6 {[%emt 0:00:26][%cal Bd7d6,Bd6d5][%mdl 32]} 10. c3 {[%emt 0:04:40]} Rb8 {[%emt 0:02:25]} 11. d4 {[%emt 0:26:03]} bxc3 {[%emt 0:03:48]} 12. bxc3 {[%emt 0:01:30]} exd4 {[%emt 0:03:52]} 13. cxd4 {[%emt 0:00:13]} Bg4 {[%emt 0:02:16] next ...Bxf3 is good for Black.} 14. Be3 {[%emt 0:00:31] C90: Closed Ruy Lopez with 7...d6: Early deviations.} (14. Ba4 $11 Bxf3 15. gxf3) 14... d5 $1 $17 {[%emt 0:04:50]} (14... Nxe4 15. Bd5 $16) 15. e5 {[%emt 0:06:00]} Ne4 {[%emt 0:00:54] [#]} 16. h3 $146 {[%emt 0:08:32] Black is better.} ({Predecessor:} 16. Qc2 Nb4 17. Qe2 c5 18. dxc5 Nxc5 19. Bxc5 Bxc5 20. h3 Bxf3 21. Qxf3 Nc6 22. Qd3 {0-1 (74) Akatova,E (2320)-Kachiani Gersinska,K (2388) Plovdiv 2008}) 16... Bh5 {[%emt 0:07:31] Black has more active pieces. The white rooks are badly placed.} 17. Qc1 {[%emt 0:05:26]} Bb4 {[%emt 0:08:11] Threatens to win with ...Bxf3.} ({Much worse is} 17... Rxb3 $6 18. Qxc6 Bxf3 19. gxf3 Nxf2 20. Bxf2 $15) (17... Nxe5 $6 18. Nxe5 Rxb3 19. Nc6 $11) 18. Qxc6 {[%emt 0:06:04]} Bxe1 {[%emt 0:00:33]} 19. Bxd5 {[%emt 0:01:01] [#]} Bxf2+ {[%emt 0:06:02][%mdl 512]} 20. Bxf2 {[%emt 0:00:50]} Nxf2 {[%emt 0:00:06]} 21. Kxf2 {[%emt 0:01:43] Loses the game.} (21. Nbd2 $17 Nd3 22. Bc4) 21... Rb2+ $1 $19 {[%emt 0:01:14]} 22. Kg3 {[%emt 0:16:56]} Bxf3 {[%emt 0:01:31][%mdl 64] Remove Defender} 23. Bxf3 {[%emt 0:00:08]} (23. Kxf3 Qg5 24. Nc3 Qxg2+ 25. Ke3 Qf2+ 26. Ke4 Rd2 $19) 23... Qxd4 {[%emt 0:05:25]} 24. Qe4 {[%emt 0:13:01] [#]} Qg1 {[%emt 0:01:54]} 25. e6 {[%emt 0:01:28]} fxe6 {[%emt 0:01:21] Chess con chili.} ({Stronger than} 25... f5 26. Qd5 Kh8 27. e7 Qe1+ 28. Kh2 Qxe7 29. Na3 $11) 26. Qxe6+ {[%emt 0:01:11]} (26. Ra3 Kh8 27. Re3 Qf2+ 28. Kh2 Rxb1 29. Qxe6) 26... Kh8 {[%emt 0:00:07] ( -> ...Rxf3+)} 27. Nd2 {[%emt 0:01:38]} Qxa1 {[%emt 0:00:29]} 28. Nc4 {[%emt 0:02:22] [#]} Rb5 {[%emt 0:00:44]} (28... Rxf3+ $142 $1 29. gxf3 (29. Kxf3 Qf1+) 29... Qg1+ 30. Kf4 Qh2+ 31. Ke4 Qe2+ 32. Kd4 Qxe6 33. Nxb2 Qf6+ 34. Kd5 Qxb2 35. f4 Qd2+ 36. Ke5 Qd6+ 37. Ke4 Qe6+ 38. Kd4 Qxh3 39. Ke4 Qe6+ 40. Kd3 h5 41. Kd2 h4 42. Kc3 h3 43. f5 Qxf5 44. Kc4 h2 45. Kb3 h1=Q 46. Kc3 Qc1+ 47. Kb3 Qd5+ 48. Kb4 Qdc4#) 29. Qxa6 {[%emt 0:00:42] [#]} Rxf3+ $1 {[%emt 0:00:51] Weighted Error Value: White=1.34/Black=0.34} 0-1

[Event "37th ECCC 2022"]
[Site "Mayrhofen"]
[Date "2022.10.04"]
[Round "2.53"]
[White "Sadikhov, Ulvi"]
[Black "Renman, Nils-Gustaf"]
[Result "1-0"]
[ECO "A06"]
[WhiteElo "2473"]
[BlackElo "2329"]
[Annotator "TA"]
[PlyCount "74"]
[EventDate "2022.10.03"]
[EventType "team-tourn"]
[EventCountry "AUT"]
[SourceTitle "playchess.com"]
[Source "ChessBase"]
[SourceQuality "1"]
[TimeControl "40/5400+30:1800+30"]

{[%evp 10,74,13,10,18,0,0,0,28,25,27,13,12,14,16,14,0,0,14,0,15,9,12,0,24,-14,0,-10,0,-14,0,-49,-45,-39,33,25,72,68,78,0,0,15,16,9,52,8,2,-167,-19,-147,-138,-137,-139,-147,-115,-125,-2,-175,-174,-147,-161,-388,-327,-325,0,0,439]} 1. Nf3 {[%emt 0:00:04]} d5 {[%emt 0:00:25]} 2. g3 {[%emt 0:00:07]} c6 {[%emt 0:00:34]} 3. Bg2 {[%emt 0:00:16]} Bg4 {[%emt 0:00:21]} 4. O-O {[%emt 0:00:27]} Nd7 {[%emt 0:00:27]} 5. d3 {[%emt 0:00:34]} Ngf6 {[%emt 0:00:13]} 6. h3 {[%emt 0:00:12]} Bxf3 {[%emt 0:01:31] A07: Réti Opening: New York and Capablanca Systems.} 7. Bxf3 {[%emt 0:00:23]} e5 {[%emt 0:00:24]} 8. e4 {[%emt 0:02:26]} dxe4 {[%emt 0:00:54]} 9. dxe4 {[%emt 0:00:07]} Bc5 {[%emt 0:00:21]} 10. c3 {[%emt 0:00:45]} a5 {[%emt 0:00:47]} 11. a4 {[%emt 0:00:43]} O-O {[%emt 0:00:35]} 12. Nd2 {[%emt 0:00:47][%cal Bb1d2,Bd2c4,Bc4e3,Be3c2][%mdl 32]} Qc7 {[%emt 0:02:41]} 13. Qe2 {[%emt 0:03:53]} Rfe8 {[%emt 0:07:14]} 14. Bg2 {[%emt 0:02:50]} Rad8 {[%emt 0:21:56]} 15. Nc4 {[%emt 0:02:19] [#]} Ra8 $146 {[%emt 0:07:42]} ({Predecessor:} 15... h6 16. Qf3 Nh7 17. h4 Ra8 18. Rd1 Nb6 19. Ne3 Bxe3 20. Qxe3 Rad8 21. Re1 Nf6 {½-½ (53) Demidov,M (2552)-Solak,D (2594) Chess.com INT 2020}) 16. Ne3 {[%emt 0:05:24]} g6 {[%emt 0:01:56]} 17. Nc2 {[%emt 0:06:26]} Kg7 {[%emt 0:06:19]} 18. Kh1 {[%emt 0:01:13]} Bb6 {[%emt 0:04:51]} 19. b4 {[%emt 0:04:55]} Nf8 {[%emt 0:02:14]} 20. f4 {[%emt 0:05:31]} (20. Ne3 $11) 20... Nh5 $15 {[%emt 0:01:05]} 21. Qf3 {[%emt 0:13:46]} f5 {[%emt 0:03:34]} ({Better is} 21... exf4 $15 22. Bxf4 Nxf4 23. gxf4 Red8) 22. exf5 $14 {[%emt 0:03:47]} e4 {[%emt 0:05:23]} (22... exf4 $11 {is more appropriate.} 23. f6+ (23. gxf4 Nd7 $11) 23... Kg8 24. Bxf4 Nxf4) 23. Qg4 $16 {[%emt 0:00:26]} Nf6 {[%emt 0:00:33]} 24. Qh4 {[%emt 0:05:36]} (24. Qg5 $6 h6 25. Qh4 gxf5 $11) ({White should try} 24. Qe2 $1 $16) 24... e3 $1 $36 {[%emt 0:06:57][%mdl 2048] Black has some pressure.} 25. Re1 {[%emt 0:08:28][%cal Rc1e3]} e2 {[%emt 0:01:16] And now ...Bf2 would win.} 26. g4 {[%emt 0:01:24] Hoping for c4.} Ne4 {[%emt 0:05:52]} 27. Bxe4 {[%emt 0:07:55]} Rxe4 {[%emt 0:00:02]} 28. c4 $2 {[%emt 0:00:28]} (28. Qg3 $11) 28... Qd8 {[%emt 0:03:29]} (28... axb4 $19 {aiming for ...b3.} 29. Bb2+ Kf7 30. fxg6+ hxg6) 29. Bb2+ {[%emt 0:03:31]} (29. Qg3 $1 $11 {keeps the balance.}) 29... Kg8 $17 {[%emt 0:00:02]} 30. Qh6 {[%emt 0:03:37][%csl Gb2][%cal Rh6g7] [#]} Qe7 {[%emt 0:03:31] Inhibits Qg7+.} 31. fxg6 {[%emt 0:12:09]} Nxg6 {[%emt 0:00:13]} 32. f5 {[%emt 0:00:25] [#]} Nf4 {[%emt 0:03:30]} (32... Qf8 $1 $17 {[%cal Rf8h6]} 33. Qxf8+ Nxf8) 33. Bf6 $2 {[%emt 0:00:51]} (33. Ra3 $1 $11) 33... Qf8 $19 {[%emt 0:03:17][%mdl 1024] Black has strong compensation.} 34. Qg5+ {[%emt 0:01:09]} Kf7 {[%emt 0:00:02]} 35. Bb2 $2 {[%emt 0:01:55]} (35. c5 $2 h6 36. Qh4 Bd8 37. Bxd8 Rxd8 $19) (35. Be5 {was worth a try.} Nxh3 36. Qf6+ Ke8 37. Qe6+ Qe7 38. Qg8+ Kd7 39. Red1+ (39. Qxa8 Nf2+ 40. Kg2 Rxg4+ 41. Kf3 Rg3+ 42. Kxe2 Qxe5+) 39... exd1=Q+ 40. Rxd1+ Bd4 41. Qxa8 (41. Rxd4+ $2 Rxd4 42. Qe6+ Qxe6 $19) 41... Nf2+ 42. Kg2 Rxg4+ 43. Kf1 (43. Kf3 Rg3+ 44. Ke2 Qxe5+ 45. Kf1 Rg1+ 46. Kxg1 Qg3+ 47. Kf1 Qh3+ 48. Ke2 Qh5+ 49. Kf1 Qh1+ 50. Ke2 Qxd1#) 43... Nxd1 44. Qxb7+ Ke8 45. Qxe7+ Kxe7 46. Nxd4 axb4 47. Ke2 Nc3+ 48. Kd3) 35... Bd8 {[%emt 0:04:09]} 36. f6 {[%emt 0:00:04]} Bc7 $2 {[%emt 0:03:06]} (36... axb4 $19 37. a5 (37. Qf5 $2 Qh6 $19) 37... Qg8) 37. Nd4 $11 {[%emt 0:01:25] Ra3 is the strong threat. Really sharp!} (37. Qf5 $2 Qh6 38. Qd7+ (38. Qxe4 {leads to mate.} Qxh3+ 39. Kg1 Qg3+ 40. Kh1 Qh4+ 41. Kg1 Nh3+ 42. Kh1 Ng5+ 43. Kg2 Qh2#) 38... Kg8 $19) 37... Nd3 $2 {[%emt 0:00:00][%mdl 8192] What a bad dream for Black.  Weighted Error Value: White=0.38/Black=0.54} (37... Rd8 $11 {and Black has nothing to worry.} 38. Qh4 (38. Qf5 $2 Qh6 $19) 38... Qg8) 1-0